fUSD/lending_fUSD_20250609
["ID","MTS","AMOUNT","RATE_DAILY","PERIOD"]
[365160398,1749505845028,-480.0,0.00019178,2]
[365160399,1749505845039,-490.0,0.00019178,2]
[365160400,1749505845079,-1710.27,0.00019178,2]
[365160401,1749505845089,-601.87,0.00019178,2]
[365160402,1749505845099,-643.44,0.00019178,2]
[365160403,1749505845109,-480.0,0.00019178,2]
[365160404,1749505845119,-1498.81,0.00019178,2]
[365160405,1749505845130,-490.0,0.00019178,2]
[365160406,1749505845140,-490.0,0.00019178,2]
[365160407,1749505845150,-967.1,0.00019178,2]
[365160408,1749505845161,-490.0,0.00019178,2]
[365160409,1749505845171,-490.0,0.00019178,2]
[365160410,1749505845181,-490.0,0.00019178,2]
[365160411,1749505845192,-490.0,0.00019178,2]
[365160412,1749505845203,-1454.84,0.00019178,2]
[365160413,1749505845213,-490.0,0.00019178,2]
[365160414,1749505845224,-880.05,0.00019178,2]
[365160415,1749505845236,-1024.87,0.00019178,2]
[365160416,1749505845246,-516.18,0.00019178,2]
[365160417,1749505845256,-1295.44,0.00019178,2]
[365160418,1749505845266,-490.0,0.00019178,2]
[365160419,1749505845275,-470.0,0.00019178,2]
[365160420,1749505845285,-490.0,0.00019178,2]
[365160421,1749505845295,-490.0,0.00019178,2]
[365160422,1749505845304,-490.0,0.00019178,2]
[365160423,1749505845314,-689.19,0.00019178,2]
[365160424,1749505845324,-1339.92,0.00019178,2]
[365160425,1749505845334,-480.0,0.00019178,2]
[365160426,1749505845345,-490.0,0.00019178,2]
[365160427,1749505845356,-3861.23,0.00019178,2]
[365160428,1749505845366,-630.2,0.00019178,2]
[365160429,1749505845377,-490.0,0.00019178,2]
[365160430,1749505845388,-539.44,0.00019178,2]
[365160431,1749505845398,-490.0,0.00019178,2]
[365160432,1749505845407,-955.03,0.00019178,2]
[365160433,1749505845418,-5299.32,0.00019178,2]
[365160434,1749505845430,-955.03,0.00019178,2]
[365160435,1749505845441,-490.0,0.00019178,2]
[365160436,1749505845451,-955.03,0.00019178,2]
[365160437,1749505845460,-955.03,0.00019178,2]
[365160438,1749505845470,-490.0,0.00019178,2]
[365160439,1749505845480,-490.0,0.00019178,2]
[365160440,1749505845489,-1150.54,0.00019178,2]
[365160441,1749505845499,-490.0,0.00019178,2]
[365160442,1749505845509,-490.0,0.00019178,2]
[365160443,1749505845519,-841.64,0.00019178,2]
[365160444,1749505845529,-837.59,0.00019178,2]
[365160445,1749505845539,-906.14,0.00019178,2]
[365160446,1749505845549,-5700.11,0.00019178,2]
[365160447,1749505845559,-5700.11,0.00019178,2]
[365160448,1749505845569,-5700.11,0.00019178,2]
[365160449,1749505845579,-490.0,0.00019178,2]
[365160450,1749505845589,-5700.11,0.00019178,2]
[365160451,1749505845599,-1010.65,0.00019178,2]
[365160452,1749505845609,-490.0,0.00019178,2]
[365160453,1749505845619,-1452.3,0.00019178,2]
[365160454,1749505845628,-490.0,0.00019178,2]
[365160455,1749505845638,-608.49,0.00019178,2]
[365160456,1749505845648,-490.0,0.00019178,2]
[365160458,1749505845658,-490.0,0.00019178,2]
[365160459,1749505845668,-490.0,0.00019178,2]
[365160461,1749505845678,-490.0,0.00019178,2]
[365160462,1749505845689,-1342.38,0.00019178,2]
[365160463,1749505845699,-766.22,0.00019178,2]
[365160464,1749505845710,-480.0,0.00019178,2]
[365160465,1749505845720,-910.84,0.00019178,2]
[365160466,1749505845729,-1034.87,0.00019178,2]
[365160467,1749505845739,-1666.06,0.00019178,2]
[365160468,1749505845750,-1128.2,0.00019178,2]
[365160469,1749505845760,-1903.48,0.00019178,2]
[365160470,1749505845770,-400.12387281,0.00019178,2]
[365160471,1749505845780,-490.0,0.00019178,2]
[365160472,1749505845790,-480.0,0.00019178,2]
[365160473,1749505845802,-578.57,0.00019178,2]
[365160474,1749505845811,-1247.55,0.00019178,2]
[365160475,1749505845821,-480.0,0.00019178,2]
[365160476,1749505845831,-490.0,0.00019178,2]
[365160477,1749505845841,-490.0,0.00019178,2]
[365160478,1749505845852,-530.81,0.00019178,2]
[365160479,1749505845862,-533.02,0.00019178,2]
[365160480,1749505845879,-1058.14,0.00019178,2]
[365160481,1749505845888,-490.0,0.00019178,2]
[365160482,1749505845898,-490.0,0.00019178,2]
[365160483,1749505845909,-953.68,0.00019178,2]
[365160484,1749505845921,-490.0,0.00019178,2]
[365160485,1749505845932,-3031.76,0.00019178,2]
[365160486,1749505845942,-561.54,0.00019178,2]
[365160487,1749505845954,-2763.66,0.00019178,2]
[365160488,1749505845965,-490.0,0.00019178,2]
[365160489,1749505845975,-551.23,0.00019178,2]
[365160490,1749505845985,-532.06,0.00019178,2]
[365160491,1749505845995,-2295.29,0.00019178,2]
[365160492,1749505846005,-626.76,0.00019178,2]
[365160493,1749505846015,-500.0,0.00019178,2]
[365160494,1749505846025,-705.95,0.00019178,2]
[365160495,1749505846035,-250.10000001,0.00019178,2]
[365160496,1749505846046,-2196.49,0.00019178,2]
[365160497,1749505846056,-490.0,0.00019178,2]
[365160498,1749505846067,-150.0,0.00019178,2]
[365160499,1749505846077,-1330.92,0.00019178,2]
[365160500,1749505846087,-490.0,0.00019178,2]
[365160501,1749505846098,-492.13,0.00019178,2]
[365160502,1749505846108,-594.3,0.00019178,2]
[365160503,1749505846118,-490.0,0.00019178,2]
[365160504,1749505846128,-490.0,0.00019178,2]
[365160505,1749505846138,-490.0,0.00019178,2]
[365160506,1749505846148,-490.0,0.00019178,2]
[365160507,1749505846158,-490.0,0.00019178,2]
[365160508,1749505846168,-919.0,0.00019178,2]
[365160509,1749505846178,-1866.71,0.00019178,2]
[365160510,1749505846188,-1205.06,0.00019178,2]
[365160511,1749505846198,-490.0,0.00019178,2]
[365160512,1749505846207,-490.0,0.00019178,2]
[365160513,1749505846217,-1050.12,0.00019178,2]
[365160514,1749505846227,-490.0,0.00019178,2]
[365160515,1749505846237,-490.0,0.00019178,2]
[365160516,1749505846246,-781.96,0.00019178,2]
[365160517,1749505846256,-490.0,0.00019178,2]
[365160518,1749505846266,-490.0,0.00019178,2]
[365160519,1749505846276,-408.20520552,0.00019178,2]
[365160520,1749505846285,-490.0,0.00019178,2]
[365160521,1749505846295,-150.0,0.00019178,2]
[365160522,1749505846305,-615.45,0.00019178,2]
[365160523,1749505846315,-1394.78,0.00019178,2]
[365160524,1749505846326,-151.0,0.00019178,2]
[365160525,1749505846336,-465.73226284,0.00019178,2]
[365160526,1749505846347,-151.0,0.00019178,2]
[365160527,1749505846358,-151.0,0.00019178,2]
[365160528,1749505846368,-161.14916714,0.00019178,2]
[365160529,1749505846378,-1500.0,0.00019178,2]
[365160530,1749505846389,-178.66,0.00019178,2]
[365160531,1749505846402,-307.15411749,0.00019183,2]
[365160532,1749505846412,-1065.89594453,0.00019199,5]
[365160533,1749505846422,-228.69851147,0.000192,2]
[365160535,1749505846432,-5565.26726794,0.000192,2]
[365160537,1749505846442,-151.0,0.000192,2]
[365160538,1749505846452,-151.0,0.000192,2]
[365160539,1749505846462,-250.0,0.000192,2]
[365160540,1749505846472,-250.0,0.000192,2]
[365160541,1749505846482,-250.0,0.000192,2]
[365160542,1749505846492,-250.0,0.000192,2]
[365160543,1749505846502,-250.0,0.000192,2]
[365160544,1749505846512,-250.0,0.000192,2]
[365160545,1749505846521,-150.6,0.000192,2]
[365160546,1749505846531,-151.0,0.000192,2]
[365160547,1749505846541,-151.0,0.000192,2]
[365160548,1749505846551,-250.0,0.000192,2]
[365160549,1749505846561,-250.0,0.000192,2]
[365160550,1749505846571,-250.0,0.000192,2]
[365160551,1749505846580,-711.0,0.000192,2]
[365160552,1749505846590,-376.0,0.000192,2]
[365160553,1749505846600,-376.7963,0.000192,2]
[365160554,1749505846610,-768.0,0.000192,2]
[365160555,1749505846622,-768.6225,0.000192,2]
[365160556,1749505846644,-811.98,0.000192,2]
[365160557,1749505846654,-151.09121182,0.00019205,2]
[365160558,1749505846665,-170.53758,0.00019205,2]
[365160559,1749505846675,-170.53758,0.00019205,2]
[365160560,1749505846684,-151.0,0.00019205,2]
[365160561,1749505846694,-255.903879,0.00019205,2]
[365160562,1749505846704,-153.070354,0.00019205,2]
[365160563,1749505846714,-299.02,0.00019205,2]
[365160564,1749505846724,-299.02,0.00019205,2]
[365160565,1749505846734,-151.0,0.00019205,2]
[365160566,1749505846744,-151.0,0.00019205,2]
[365160567,1749505846754,-151.0,0.00019205,2]
[365160568,1749505846763,-151.0,0.00019205,2]
[365160569,1749505846773,-151.0,0.00019205,2]
[365160570,1749505846783,-151.0,0.00019205,2]
[365160571,1749505846792,-151.0,0.00019205,2]
[365160572,1749505846801,-151.0,0.00019205,2]
[365160573,1749505846811,-151.0,0.00019205,2]
[365160574,1749505846820,-151.0,0.00019205,2]
[365160575,1749505846830,-151.0,0.00019205,2]
[365160576,1749505846839,-151.0,0.00019205,2]
[365160577,1749505846849,-221.620575,0.00019205,2]
[365160578,1749505846859,-221.620575,0.00019205,2]
[365160579,1749505846869,-215.69762739,0.00019205,2]
[365160580,1749505846882,-151.0,0.00019205,2]
[365160581,1749505846892,-151.0,0.00019205,2]
[365160582,1749505846902,-151.0,0.00019205,2]
[365160584,1749505846912,-364.593156,0.00019205,2]
[365160585,1749505846922,-364.593156,0.00019205,2]
[365160586,1749505846932,-955.03,0.00019205,2]
[365160587,1749505846942,-150.0,0.00019205,2]
[365160588,1749505846953,-500.0,0.00019205,2]
[365160589,1749505846963,-150.0,0.00019205,2]
[365160590,1749505846973,-150.0,0.00019205,2]
[365160591,1749505846983,-150.0,0.00019205,2]
[365160592,1749505846993,-150.0,0.00019205,2]
[365160593,1749505847002,-150.0,0.00019205,2]
[365160594,1749505847012,-150.0,0.00019205,2]
[365160595,1749505847021,-500.0,0.00019205,2]
[365160596,1749505847031,-200.0,0.00019205,2]
[365160597,1749505847042,-2985.0,0.00019205,2]
[365160598,1749505847051,-500.0,0.00019205,2]
[365160599,1749505847062,-500.0,0.00019205,2]
[365160600,1749505847072,-200.0,0.00019205,2]
[365160601,1749505847081,-919.0,0.00019205,2]
[365160602,1749505847091,-150.0,0.00019205,2]
[365160603,1749505847101,-334.47662734,0.00019205,2]
[365160604,1749505847111,-1561.55,0.00019205,30]
[365160605,1749505847121,-1081.71,0.00019206,2]
[365160606,1749505847130,-2636.0,0.00019206,2]
[365160607,1749505847140,-636.0,0.00019206,2]
[365160608,1749505847149,-802.0,0.00019206,2]
[365160609,1749505847159,-1159.0,0.00019206,2]
[365160610,1749505847170,-589.0,0.00019206,2]
[365160611,1749505847180,-2000.0,0.00019206,2]
[365160612,1749505847190,-557.0,0.00019206,2]
[365160613,1749505847200,-1275.0,0.00019206,2]
[365160614,1749505847210,-926.0,0.00019206,2]
[365160615,1749505847220,-1255.0,0.00019206,2]
[365160616,1749505847230,-853.0,0.00019206,2]
[365160617,1749505847239,-7063.0,0.00019206,2]
[365160618,1749505847249,-4084.0,0.00019206,2]
[365160619,1749505847259,-155.0,0.00019206,2]
[365160620,1749505847548,-883.0,0.00019206,2]
[365160621,1749505847569,-664.18404425,0.0001921,2]
[365160622,1749505847578,-5700.11,0.00019217,2]
[365160623,1749505847589,-5841.07129857,0.00019218,2]
[365160624,1749505847601,-151.0,0.00019218,2]
[365160625,1749505847611,-151.0,0.00019218,2]
[365160626,1749505847620,-151.0,0.00019218,2]
[365160627,1749505847631,-151.0,0.00019218,2]
[365160628,1749505847642,-178.644702,0.00019219,2]
[365160629,1749505847651,-178.644702,0.00019219,2]
[365160630,1749505847662,-151.0,0.00019219,2]
[365160631,1749505847672,-151.0,0.00019219,2]
[365160632,1749505847682,-151.0,0.00019219,2]
[365160633,1749505847692,-151.0,0.00019219,2]
[365160634,1749505847701,-4909.27822583,0.00019225,2]
[365160635,1749505847711,-150.0,0.00019233,2]
[365160636,1749505847720,-500.0,0.00019233,2]
[365160637,1749505847730,-150.0,0.00019233,2]
[365160638,1749505847740,-253.20959988,0.00019233,2]
[365160639,1749505847751,-150.0,0.00019233,2]
[365160640,1749505847760,-150.0,0.00019233,2]
[365160641,1749505847769,-204.34173649,0.00019233,2]
[365160642,1749505847779,-250.0,0.00019233,2]
[365160643,1749505847788,-500.0,0.00019233,2]
[365160644,1749505847797,-2985.0,0.00019233,2]
[365160645,1749505847807,-540.46387274,0.00019233,2]
[365160646,1749505847818,-500.0,0.00019233,2]
[365160647,1749505847828,-919.0,0.00019233,2]
[365160648,1749505847837,-150.0,0.00019233,2]
[365160649,1749505847847,-151.0,0.00019237,2]
[365160650,1749505847858,-151.0,0.00019237,2]
[365160651,1749505847868,-151.0,0.00019237,2]
[365160652,1749505847881,-151.0,0.00019237,2]
[365160653,1749505847890,-252.416402,0.00019237,2]
[365160654,1749505847900,-151.0,0.00019237,2]
[365160655,1749505847911,-151.0,0.00019237,2]
[365160656,1749505847920,-151.0,0.00019238,2]
[365160657,1749505847929,-500.0,0.00019238,2]
[365160658,1749505847939,-166.66,0.00019238,2]
[365160659,1749505847949,-199.0,0.00019241,2]
[365160660,1749505847958,-191.526,0.00019241,2]
[365160661,1749505847967,-150.0,0.00019241,2]
[365160662,1749505847977,-185.598,0.00019241,2]
[365160663,1749505847987,-192.564,0.00019241,2]
[365160664,1749505847996,-250.0,0.00019241,2]
[365160665,1749505848006,-240.448,0.00019241,2]
[365160666,1749505848015,-218.653,0.00019241,2]
[365160667,1749505848025,-290.845,0.00019241,2]
[365160668,1749505848034,-253.434,0.00019241,2]
[365160669,1749505848044,-245.67,0.00019241,2]
[365160670,1749505848054,-183.884,0.00019241,2]
[365160671,1749505848064,-243.432,0.00019241,2]
[365160672,1749505848074,-157.987,0.00019241,2]
[365160673,1749505848084,-204.309,0.00019241,2]
[365160674,1749505848094,-200.592,0.00019241,2]
[365160675,1749505848104,-151.575017,0.00019242,2]
[365160676,1749505848114,-151.0,0.00019242,2]
[365160677,1749505848124,-664.18404425,0.00019245,2]
[365160678,1749505848134,-151.0,0.0001926,2]
[365160679,1749505848144,-150.0,0.0001926,2]
[365160680,1749505848155,-500.0,0.0001926,2]
[365160681,1749505848164,-213.09230434,0.0001926,2]
[365160682,1749505848175,-150.0,0.0001926,2]
[365160683,1749505848185,-150.0,0.0001926,2]
[365160684,1749505848194,-290.02106427,0.0001926,2]
[365160685,1749505848204,-2985.0,0.0001926,2]
[365160686,1749505848214,-626.03327308,0.0001926,2]
[365160687,1749505848224,-919.0,0.0001926,2]
[365160688,1749505848235,-150.0,0.0001926,2]
[365160689,1749505848245,-151.0,0.00019275,2]
[365160690,1749505848255,-650.471266,0.00019275,2]
[365160691,1749505848265,-650.471266,0.00019275,2]
[365160692,1749505848275,-202.368615,0.00019275,2]
[365160693,1749505848285,-225.99359778,0.00019276,2]
[365160694,1749505848295,-664.18404425,0.00019279,2]
[365160695,1749505848306,-811.98,0.0001928,2]
[365160696,1749505848317,-571.17042486,0.00019284,2]
[365160697,1749505848327,-150.0,0.00019288,2]
[365160698,1749505848337,-500.0,0.00019288,2]
[365160699,1749505848348,-150.0,0.00019288,2]
[365160700,1749505848358,-2985.0,0.00019288,2]
[365160701,1749505848369,-919.0,0.00019288,2]
[365160702,1749505848379,-265.82324278,0.00019288,2]
[365160703,1749505848390,-334.47662734,0.00019288,2]
[365160704,1749505848400,-183.560974,0.00019288,2]
[365160705,1749505848410,-183.560974,0.00019288,2]
[365160706,1749505848420,-151.0,0.00019288,2]
[365160707,1749505848431,-151.0,0.00019288,2]
[365160708,1749505848441,-356.936612,0.00019288,2]
[365160709,1749505848450,-356.936612,0.00019288,2]
[365160710,1749505848460,-170.96828815,0.00019291,2]
[365160711,1749505848471,-5841.07129857,0.00019292,2]
[365160712,1749505848481,-178.644702,0.000193,2]
[365160713,1749505848491,-178.644702,0.000193,2]
[365160714,1749505848500,-151.0,0.000193,2]
[365160715,1749505848510,-151.0,0.000193,2]
[365160716,1749505848520,-4909.27822583,0.0001931,2]
[365160717,1749505848530,-664.18404425,0.00019314,2]
[365160718,1749505848540,-154.88450249,0.00019315,2]
[365160719,1749505848550,-500.0,0.00019315,2]
[365160720,1749505848560,-179.8693377,0.00019315,2]
[365160721,1749505848571,-2985.0,0.00019315,2]
[365160722,1749505848581,-919.0,0.00019315,2]
[365160723,1749505848591,-151.0,0.00019316,2]
[365160724,1749505848602,-170.53758,0.00019317,2]
[365160725,1749505848611,-170.53758,0.00019317,2]
[365160726,1749505848621,-151.0,0.00019317,2]
[365160727,1749505848631,-155.86872249,0.00019318,2]
[365160728,1749505848641,-248.5,0.00019318,2]
[365160729,1749505848651,-151.0,0.00019319,7]
[365160730,1749505848662,-955.03,0.00019327,2]
[365160731,1749505848673,-131880.85698477,0.00019328,2]
[365160732,1749505848683,-183.560974,0.00019328,2]
[365160733,1749505848693,-183.560974,0.00019328,2]
[365160734,1749505848703,-151.0,0.00019328,2]
[365160735,1749505848713,-151.0,0.00019328,2]
[365160736,1749505848723,-151.0,0.00019328,2]
[365160737,1749505848733,-395.755522,0.00019328,2]
[365160738,1749505848743,-151.0,0.00019328,2]
[365160739,1749505848752,-151.0,0.00019328,2]
[365160740,1749505848762,-151.0,0.00019328,2]
[365160741,1749505848772,-151.0,0.00019328,2]
[365160742,1749505848782,-151.0,0.00019328,2]
[365160743,1749505848792,-151.0,0.00019328,2]
[365160744,1749505848802,-151.0,0.00019328,2]
[365160745,1749505848812,-314.25261,0.00019328,2]
[365160746,1749505848823,-314.25261,0.00019328,2]
[365160747,1749505848832,-557.6,0.00019328,2]
[365160748,1749505848842,-364.593156,0.00019328,2]
[365160749,1749505848851,-364.593156,0.00019328,2]
[365160750,1749505848861,-500.0,0.00019328,2]
[365160751,1749505848875,-183.560974,0.00019329,2]
[365160752,1749505848885,-183.560974,0.00019329,2]
[365160753,1749505848895,-178.644702,0.00019329,2]
[365160754,1749505848905,-178.644702,0.00019329,2]
[365160755,1749505848915,-151.0,0.00019329,2]
[365160756,1749505848925,-151.0,0.00019329,2]
[365160757,1749505848935,-151.0,0.00019329,2]
[365160758,1749505848946,-151.0,0.00019329,2]
[365160759,1749505848957,-151.0,0.00019329,2]
[365160760,1749505848969,-170.53758,0.00019329,2]
[365160761,1749505848979,-170.53758,0.00019329,2]
[365160762,1749505848989,-151.0,0.00019329,2]
[365160763,1749505848999,-356.936612,0.00019329,2]
[365160764,1749505849010,-356.936612,0.00019329,2]
[365160765,1749505849020,-206.739141,0.00019329,2]
[365160766,1749505849030,-650.471266,0.00019329,2]
[365160767,1749505849040,-650.471266,0.00019329,2]
[365160768,1749505849051,-151.0,0.00019329,2]
[365160769,1749505849062,-151.0,0.00019329,2]
[365160770,1749505849071,-202.368615,0.00019329,2]
[365160771,1749505849081,-151.0,0.00019329,2]
[365160772,1749505849091,-210.820258,0.00019329,2]
[365160773,1749505849101,-151.0,0.00019329,2]
[365160774,1749505849111,-151.0,0.00019329,2]
[365160775,1749505849121,-157.628526,0.00019329,2]
[365160776,1749505849130,-157.628526,0.00019329,2]
[365160777,1749505849141,-299.02,0.00019329,2]
[365160778,1749505849150,-299.02,0.00019329,2]
[365160779,1749505849160,-151.0,0.00019329,2]
[365160780,1749505849170,-151.0,0.00019329,2]
[365160781,1749505849180,-151.0,0.00019329,2]
[365160782,1749505849189,-151.0,0.00019329,2]
[365160783,1749505849199,-151.0,0.00019329,2]
[365160784,1749505849210,-151.0,0.00019329,2]
[365160785,1749505849219,-151.0,0.00019329,2]
[365160786,1749505849229,-151.0,0.00019329,2]
[365160787,1749505849239,-151.0,0.00019329,2]
[365160788,1749505849249,-151.0,0.00019329,2]
[365160789,1749505849259,-151.0,0.00019329,2]
[365160790,1749505849269,-151.0,0.00019329,2]
[365160791,1749505849279,-151.0,0.00019329,2]
[365160792,1749505849289,-151.0,0.00019329,2]
[365160793,1749505849301,-244.285581,0.00019329,2]
[365160794,1749505849310,-188.18891,0.00019329,2]
[365160795,1749505849319,-188.18891,0.00019329,2]
[365160796,1749505849329,-188.18891,0.00019329,2]
[365160797,1749505849338,-188.18891,0.00019329,2]
[365160798,1749505849349,-324.492742,0.00019329,2]
[365160799,1749505849360,-324.492742,0.00019329,2]
[365160800,1749505849370,-324.492742,0.00019329,2]
[365160801,1749505849387,-324.492742,0.00019329,2]
[365160802,1749505849397,-214.452768,0.00019329,2]
[365160803,1749505849407,-214.452768,0.00019329,2]
[365160804,1749505849417,-214.452768,0.00019329,2]
[365160805,1749505849427,-214.452768,0.00019329,2]
[365160806,1749505849437,-151.0,0.00019329,2]
[365160807,1749505849447,-151.0,0.00019329,2]
[365160808,1749505849457,-151.0,0.00019329,2]
[365160809,1749505849467,-151.0,0.00019329,2]
[365160810,1749505849478,-151.0,0.00019329,2]
[365160811,1749505849488,-151.0,0.00019329,2]
[365160812,1749505849498,-151.0,0.00019329,2]
[365160813,1749505849509,-151.0,0.00019329,2]
[365160814,1749505849519,-151.0,0.00019329,2]
[365160815,1749505849529,-151.0,0.00019329,2]
[365160816,1749505849539,-151.0,0.00019329,2]
[365160817,1749505849548,-151.0,0.00019329,2]
[365160818,1749505849558,-151.0,0.00019329,2]
[365160819,1749505849572,-151.0,0.00019329,2]
[365160820,1749505849582,-221.620575,0.00019329,2]
[365160821,1749505849591,-221.620575,0.00019329,2]
[365160822,1749505849601,-1253.136228,0.00019329,2]
[365160823,1749505849611,-1253.136228,0.00019329,2]
[365160824,1749505849620,-1253.136228,0.00019329,2]
[365160825,1749505849630,-1253.136228,0.00019329,2]
[365160826,1749505849639,-353.126917,0.00019329,2]
[365160827,1749505849648,-353.126917,0.00019329,2]
[365160828,1749505849658,-313.562792,0.00019329,2]
[365160829,1749505849667,-313.562792,0.00019329,2]
[365160830,1749505849677,-151.0,0.00019329,2]
[365160831,1749505849687,-151.0,0.00019329,2]
[365160832,1749505849698,-151.0,0.00019329,2]
[365160833,1749505849707,-219.278864,0.00019329,2]
[365160834,1749505849717,-219.278864,0.00019329,2]
[365160835,1749505849727,-219.278864,0.00019329,2]
[365160836,1749505849737,-219.278864,0.00019329,2]
[365160837,1749505849747,-151.0,0.00019329,2]
[365160838,1749505849756,-892.141764,0.00019329,2]
[365160839,1749505849766,-892.141764,0.00019329,2]
[365160840,1749505849776,-151.0,0.00019329,2]
[365160841,1749505849785,-154.806707,0.00019329,2]
[365160842,1749505849795,-151.0,0.00019329,2]
[365160843,1749505849805,-151.0,0.00019329,2]
[365160844,1749505849815,-164.586808,0.00019329,2]
[365160845,1749505849824,-164.586808,0.00019329,2]
[365160846,1749505849833,-207.435276,0.00019329,2]
[365160847,1749505849843,-207.435276,0.00019329,2]
[365160848,1749505849852,-151.0,0.00019329,2]
[365160849,1749505849862,-151.0,0.00019329,2]
[365160850,1749505849874,-151.0,0.00019329,2]
[365160851,1749505849884,-271.418806,0.00019329,2]
[365160852,1749505849894,-271.418806,0.00019329,2]
[365160853,1749505849904,-151.0,0.00019329,2]
[365160854,1749505849914,-151.0,0.00019329,2]
[365160855,1749505849925,-303.804144,0.00019329,2]
[365160856,1749505850007,-160.804686,0.00019329,2]
[365160857,1749505850016,-160.804686,0.00019329,2]
[365160858,1749505850026,-364.593156,0.00019329,2]
[365160859,1749505850035,-364.593156,0.00019329,2]
[365160860,1749505850045,-1010.666632,0.00019329,2]
[365160861,1749505850054,-1010.666632,0.00019329,2]
[365160862,1749505850064,-2161.2052285,0.00019329,2]
[365160863,1749505850074,-5700.11,0.00019329,2]
[365160864,1749505850084,-35122.79111257,0.0001933,2]
[365160865,1749505850093,-356.936612,0.0001933,2]
[365160866,1749505850103,-356.936612,0.0001933,2]
[365160867,1749505850112,-151.0,0.0001933,2]
[365160868,1749505850121,-151.0,0.0001933,2]
[365160869,1749505850130,-151.0,0.0001933,2]
[365160870,1749505850140,-151.0,0.0001933,2]
[365160871,1749505850149,-183.560974,0.00019341,2]
[365160872,1749505850159,-183.560974,0.00019341,2]
[365160873,1749505850168,-151.0,0.00019341,2]
[365160874,1749505850178,-161.137024,0.00019341,2]
[365160875,1749505850187,-892.141764,0.00019341,2]
[365160876,1749505850196,-892.141764,0.00019341,2]
[365160877,1749505850205,-151.0,0.00019341,2]
[365160878,1749505850215,-151.0,0.00019341,2]
[365160879,1749505850225,-151.0,0.00019341,2]
[365160880,1749505850235,-164.586808,0.00019341,2]
[365160881,1749505850245,-164.586808,0.00019341,2]
[365160882,1749505850254,-314.25261,0.00019341,2]
[365160883,1749505850264,-151.0,0.00019341,2]
[365160884,1749505850273,-314.25261,0.00019341,2]
[365160885,1749505850283,-151.0,0.00019341,2]
[365160886,1749505850292,-160.804686,0.00019341,2]
[365160887,1749505850301,-160.804686,0.00019341,2]
[365160888,1749505850311,-500.0,0.00019341,2]
[365160889,1749505850321,-500.0,0.00019341,2]
[365160890,1749505850330,-153.6009993,0.00019341,2]
[365160891,1749505850339,-955.03,0.00019341,2]
[365160892,1749505850348,-955.03,0.00019341,2]
[365160893,1749505850358,-5700.11,0.00019341,2]
[365160894,1749505850367,-5700.11,0.00019341,2]
[365160895,1749505850376,-24473.91738386,0.00019342,2]
[365160896,1749505850385,-183.560974,0.00019342,2]
[365160897,1749505850395,-183.560974,0.00019342,2]
[365160898,1749505850404,-178.644702,0.00019342,2]
[365160899,1749505850414,-178.644702,0.00019342,2]
[365160900,1749505850424,-178.644702,0.00019342,2]
[365160901,1749505850433,-178.644706,0.00019342,2]
[365160902,1749505850443,-151.0,0.00019342,2]